fUST/lending_fUST_20241029
["ID","MTS","AMOUNT","RATE_DAILY","PERIOD"]
[340981392,1730208448269,-153.0,0.000219,2]
[340981393,1730208448293,-204.25332407,0.00021916,2]
[340981394,1730208448316,-216.93727359,0.00021916,2]
[340981408,1730208518931,11615.67386323,0.00035058,30]
[340981413,1730208527865,10960.45514538,0.00035058,30]
[340981416,1730208532353,100402.78846037,0.00035058,30]
[340981417,1730208533254,21729.04373569,0.00035058,30]
[340981471,1730208632426,-1311.39999998,0.00021296,2]
[340981531,1730208638532,-5598.55760475,0.00021296,2]
[340981532,1730208638543,-300.0,0.00021627,2]
[340981533,1730208638555,-300.0,0.00021627,2]
[340981534,1730208638567,-6909.95760474,0.00021628,2]
[340981535,1730208638576,-300.88317274,0.00021917,2]
[340981536,1730208638587,-500.0,0.00021917,3]
[340981537,1730208638599,-502.21689704,0.00021917,3]
[340981538,1730208638609,-500.0,0.00021917,2]
[340981539,1730208638619,-500.0,0.00021917,2]
[340981540,1730208638628,-505.54830529,0.00021917,2]
[340981541,1730208638638,-500.0,0.00021917,3]
[340981542,1730208638647,-500.0,0.00021917,3]
[340981543,1730208638657,-500.0,0.00021917,3]
[340981544,1730208638667,-500.0,0.00021917,3]
[340981545,1730208638677,-500.0,0.00021917,3]
[340981546,1730208638686,-490.01872308,0.00021917,3]
[340981547,1730208638696,-336.4465589,0.00021917,3]
[340981548,1730208638706,-502.59167464,0.00021917,3]
[340981549,1730208638716,-500.0,0.00021917,3]
[340981550,1730208638725,-614.32,0.00021917,3]
[340981551,1730208638735,-500.0,0.00021917,3]
[340981561,1730208638908,-500.0,0.00021917,3]
[340981562,1730208638918,-347.97971361,0.00021917,3]
[340981563,1730208638928,-500.0,0.00021917,3]
[340981564,1730208638938,-500.0,0.00021917,3]
[340981565,1730208638948,-507.09671671,0.00021917,3]
[340981566,1730208638958,-500.0,0.00021917,3]
[340981567,1730208638967,-500.0,0.00021917,3]
[340981568,1730208638976,-503.82290893,0.00021917,3]
[340981569,1730208638986,-500.0,0.00021917,3]
[340981570,1730208638995,-500.0,0.00021917,3]
[340981571,1730208639004,-500.0,0.00021917,3]
[340981572,1730208639013,-200.0,0.00021917,3]
[340981573,1730208639023,-500.0,0.00021917,3]
[340981574,1730208639033,-622.67866678,0.00021917,3]
[340981575,1730208639043,-619.05773818,0.00021917,3]
[340981576,1730208639052,-500.0,0.00021917,2]
[340981577,1730208639061,-500.0,0.00021917,2]
[340981578,1730208639072,-176.05,0.00021917,2]
[340981579,1730208639085,-500.0,0.00021917,3]
[340981580,1730208639098,-500.0,0.00021917,3]
[340981581,1730208639108,-834.04,0.00021917,3]
[340981582,1730208639118,-500.0,0.00021917,3]
[340981583,1730208639128,-500.0,0.00021917,3]
[340981584,1730208639138,-500.0,0.00021917,3]
[340981585,1730208639147,-531.73720214,0.00021917,3]
[340981586,1730208639158,-508.15176207,0.00021917,3]
[340981587,1730208639168,-500.0,0.00021917,3]
[340981588,1730208639177,-500.0,0.00021917,3]
[340981589,1730208639187,-519.24,0.00021917,3]
[340981590,1730208639196,-500.0,0.00021917,3]
[340981591,1730208639205,-511.75909201,0.00021917,3]
[340981592,1730208639214,-500.0,0.00021917,3]
[340981593,1730208639223,-500.0,0.00021917,3]
[340981594,1730208639233,-652.62,0.00021917,3]
[340981595,1730208639243,-500.0,0.00021917,3]
[340981596,1730208639255,-585.24,0.00021917,3]
[340981597,1730208639265,-607.19,0.00021917,3]
[340981598,1730208639274,-527.86,0.00021917,3]
[340981599,1730208639284,-500.0,0.00021917,3]
[340981600,1730208639295,-500.0,0.00021917,3]
[340981601,1730208639305,-334.77113439,0.00021917,3]
[340981602,1730208639316,-590.0054293,0.00021917,3]
[340981603,1730208639327,-500.0,0.00021917,3]
[340981604,1730208639337,-500.0,0.00021917,3]
[340981605,1730208639350,-500.0,0.00021917,3]
[340981606,1730208639364,-525.73,0.00021917,3]
[340981607,1730208639374,-500.0,0.00021917,3]
[340981608,1730208639383,-500.0,0.00021917,3]
[340981609,1730208639393,-500.0,0.00021917,3]
[340981610,1730208639402,-500.0,0.00021917,3]
[340981611,1730208639412,-500.0,0.00021917,3]
[340981612,1730208639421,-500.0,0.00021917,3]
[340981613,1730208639431,-500.0,0.00021917,3]
[340981614,1730208639441,-500.0,0.00021917,3]
[340981615,1730208639451,-500.0,0.00021917,3]
[340981616,1730208639460,-500.0,0.00021917,3]
[340981617,1730208639470,-500.0,0.00021917,3]
[340981618,1730208639479,-500.0,0.00021917,3]
[340981619,1730208639489,-524.01875429,0.00021917,3]
[340981620,1730208639499,-151.0,0.00021917,2]
[340981621,1730208639508,-500.0,0.00021917,3]
[340981622,1730208639520,-173.11570067,0.00021917,3]
[340981623,1730208639530,-500.0,0.00021917,3]
[340981624,1730208639540,-500.0,0.00021917,3]
[340981625,1730208639549,-500.0,0.00021917,3]
[340981626,1730208639559,-449.21722056,0.00021917,3]
[340981627,1730208639569,-500.0,0.00021917,3]
[340981628,1730208639579,-500.0,0.00021917,3]
[340981629,1730208639590,-500.0,0.00021917,3]
[340981630,1730208639601,-829.93,0.00021917,3]
[340981631,1730208639612,-307.14741918,0.00021917,3]
[340981637,1730208640819,-192.85258082,0.00021917,3]
[340981638,1730208640831,-500.0,0.00021917,3]
[340981639,1730208640840,-417.30353267,0.00021917,3]
[340981640,1730208640853,-82.69646733,0.00021917,3]
[340981641,1730208640862,-247.46597349,0.00021917,3]
[340981645,1730208644617,-411.04402651,0.00021917,3]
[340981646,1730208644627,-500.0,0.00021917,3]
[340981647,1730208644639,-500.0,0.00021917,3]
[340981648,1730208644650,-304.22864952,0.00021917,3]
[340981649,1730208644665,-195.77135048,0.00021917,3]
[340981650,1730208644675,-500.0,0.00021917,3]
[340981651,1730208644685,-500.0,0.00021917,3]
[340981652,1730208644696,-260.26694925,0.00021917,3]
[340981655,1730208646579,-239.73305075,0.00021917,3]
[340981656,1730208646589,-500.0,0.00021917,3]
[340981657,1730208646599,-240.86542751,0.00021917,3]
[340981658,1730208646613,-500.0,0.00021917,3]
[340981659,1730208646622,-558.49,0.00021917,3]
[340981660,1730208646633,-500.0,0.00021917,3]
[340981661,1730208646643,-500.0,0.00021917,3]
[340981662,1730208646654,-500.0,0.00021917,3]
[340981663,1730208646665,-44.17959034,0.00021917,3]
[340982183,1730209508562,173.268626,0.00013973,2]
[340982184,1730209536138,-300.0,0.00020482,2]
[340982185,1730209536162,-215.25177645,0.00020482,2]
[340982186,1730209550121,-84.74822355,0.00020482,2]
[340982187,1730209550144,-514.71448225,0.00020483,2]
[340982188,1730209636561,-770.655091,0.00020435,2]
[340982189,1730209636584,-300.0,0.00020482,2]
[340982190,1730209636607,-14077.41990404,0.00020483,2]
[340982191,1730209637102,-2211.53328894,0.00020483,2]
[340982192,1730209643165,-295.37259001,0.00020483,2]
[340982193,1730209763782,168.01008847,0.0002,14]
[340982194,1730209769084,-7086.893385,0.00020374,2]
[340982224,1730209832620,-165.18922583,0.00020488,2]
[340982226,1730209832630,-167.676204,0.00020588,2]
[340982228,1730209832639,-167.676204,0.00020707,2]
[340982230,1730209832649,-167.676204,0.00020827,2]
[340982232,1730209832658,-165.18922581,0.00020905,2]
[340982234,1730209832667,-167.676204,0.00020946,2]
[340982236,1730209832676,-167.676204,0.00021065,2]
[340982238,1730209832687,-770.655091,0.0002112,2]
[340982240,1730209832697,-167.676204,0.00021184,2]
[340982242,1730209832707,-749.57313726,0.00021278,2]
[340982244,1730209832718,-153.0,0.00021278,2]
[340982246,1730209832727,-153.0,0.00021278,2]
[340982248,1730209832739,-153.0,0.000213,2]
[340982250,1730209832749,-167.676204,0.00021303,2]
[340982252,1730209832758,-165.18922581,0.00021322,2]
[340982254,1730209832768,-153.0,0.000214,2]
[340982257,1730209832778,-167.676204,0.00021423,2]
[340982259,1730209832790,-167.676204,0.00021542,2]
[340982260,1730209832799,-167.676204,0.00021661,2]
[340982262,1730209832811,-776.99252431,0.00021717,2]
[340982264,1730209832820,-770.655091,0.00021805,2]
[340982266,1730209832829,-3665.00639316,0.00021817,2]
[340982268,1730209832839,-300.0,0.00021915,2]
[340982270,1730209832849,-300.0,0.00021915,2]
[340982272,1730209832859,-269.44234999,0.00021916,2]
[340982275,1730209832868,-500.0,0.00021916,2]
[340982277,1730209832878,-203.80012,0.00021916,2]
[340982279,1730209832887,-500.0,0.00021916,2]
[340982281,1730209832898,-161.84749807,0.00021916,2]
[340982283,1730209832908,-833.5995328,0.00021916,2]
[340982285,1730209832917,-551.8581717,0.00021916,2]
[340982287,1730209832927,-500.0,0.00021916,2]
[340982289,1730209832938,-500.0,0.00021916,2]
[340982291,1730209832948,-500.0,0.00021916,2]
[340982293,1730209832957,-500.0,0.00021916,2]
[340982295,1730209832967,-500.0,0.00021916,2]
[340982297,1730209832976,-500.0,0.00021916,2]
[340982299,1730209832986,-500.0,0.00021916,2]
[340982313,1730209833120,-500.0,0.00021916,2]
[340982316,1730209833130,-500.0,0.00021916,2]
[340982318,1730209833141,-500.0,0.00021916,2]
[340982319,1730209833151,-158.51608768,0.00021916,2]
[340982321,1730209833161,-500.0,0.00021916,2]
[340982323,1730209833171,-500.0,0.00021916,2]
[340982325,1730209833181,-500.0,0.00021916,2]
[340982327,1730209833190,-200.58878183,0.00021917,2]
[340982329,1730209833200,-2696.61653582,0.00021917,3]
[340982330,1730209833210,-500.0,0.00021917,3]
[340982331,1730209833220,-500.0,0.00021917,3]
[340982332,1730209833230,-500.0,0.00021917,3]
[340982333,1730209833240,-500.0,0.00021917,3]
[340982335,1730209833249,-503.83,0.00021917,3]
[340982337,1730209833259,-500.0,0.00021917,3]
[340982339,1730209833268,-500.0,0.00021917,3]
[340982340,1730209833278,-500.0,0.00021917,3]
[340982341,1730209833290,-500.0,0.00021917,3]
[340982342,1730209833300,-500.0,0.00021917,3]
[340982343,1730209833310,-500.0,0.00021917,3]
[340982344,1730209833319,-500.0,0.00021917,3]
[340982345,1730209833329,-500.0,0.00021917,3]
[340982346,1730209833339,-500.0,0.00021917,3]
[340982347,1730209833349,-500.0,0.00021917,3]
[340982348,1730209833359,-500.0,0.00021917,3]
[340982349,1730209833370,-500.0,0.00021917,3]
[340982350,1730209833379,-176.05,0.00021917,2]
[340982351,1730209833389,-500.0,0.00021917,3]
[340982352,1730209833399,-500.0,0.00021917,3]
[340982353,1730209833408,-500.0,0.00021917,3]
[340982354,1730209833418,-500.0,0.00021917,3]
[340982355,1730209833427,-500.0,0.00021917,3]
[340982356,1730209833437,-500.0,0.00021917,3]
[340982357,1730209833447,-500.0,0.00021917,3]
[340982358,1730209833457,-500.0,0.00021917,3]
[340982359,1730209833468,-500.0,0.00021917,3]
[340982360,1730209833477,-609.21,0.00021917,3]
[340982361,1730209833487,-453.88348648,0.00021917,3]
[340982362,1730209833498,-500.0,0.00021917,3]
[340982363,1730209833507,-581.89,0.00021917,3]
[340982364,1730209833517,-625.43,0.00021917,3]
[340982365,1730209833527,-183.73474158,0.00021917,3]
[340982366,1730209833537,-500.0,0.00021917,3]
[340982367,1730209833549,-560.86,0.00021917,3]
[340982368,1730209833559,-500.0,0.00021917,3]
[340982369,1730209833568,-500.0,0.00021917,3]
[340982370,1730209833579,-500.0,0.00021917,3]
[340982371,1730209833590,-500.0,0.00021917,3]
[340982372,1730209833603,-500.0,0.00021917,3]
[340982373,1730209833612,-581.28635993,0.00021917,3]
[340982374,1730209833622,-500.0,0.00021917,3]
[340982375,1730209833631,-500.0,0.00021917,3]
[340982376,1730209833642,-500.0,0.00021917,3]
[340982377,1730209833652,-500.0,0.00021917,3]
[340982378,1730209833661,-500.0,0.00021917,3]
[340982379,1730209833671,-500.0,0.00021917,3]
[340982380,1730209833682,-500.0,0.00021917,3]
[340982381,1730209833692,-500.0,0.00021917,3]
[340982382,1730209833701,-500.0,0.00021917,3]
[340982383,1730209833711,-500.0,0.00021917,3]
[340982384,1730209833722,-500.0,0.00021917,3]
[340982385,1730209833736,-500.0,0.00021917,3]
[340982386,1730209833745,-531.88,0.00021917,3]
[340982387,1730209833755,-500.0,0.00021917,3]
[340982388,1730209833766,-500.0,0.00021917,3]
[340982389,1730209833778,-500.0,0.00021917,3]
[340982390,1730209833787,-500.0,0.00021917,3]
[340982391,1730209833797,-500.0,0.00021917,3]
[340982392,1730209833807,-795.35,0.00021917,3]
[340982393,1730209833818,-631.07,0.00021917,3]
[340982394,1730209833827,-500.0,0.00021917,3]
[340982395,1730209833837,-500.0,0.00021917,3]
[340982396,1730209833846,-535.22,0.00021917,3]
[340982397,1730209833856,-500.0,0.00021917,3]
[340982398,1730209833865,-500.0,0.00021917,3]
[340982399,1730209833876,-500.0,0.00021917,3]
[340982400,1730209833887,-400.10003908,0.00021917,3]
[340982401,1730209833897,-500.0,0.00021917,3]
[340982402,1730209833907,-500.0,0.00021917,3]
[340982403,1730209833916,-500.0,0.00021917,3]
[340982404,1730209833926,-500.0,0.00021917,3]
[340982405,1730209833936,-500.0,0.00021917,3]
[340982406,1730209833945,-500.0,0.00021917,3]
[340982407,1730209833955,-500.0,0.00021917,3]
[340982408,1730209833964,-500.0,0.00021917,3]
[340982409,1730209833974,-500.0,0.00021917,3]
[340982410,1730209833985,-500.0,0.00021917,3]
[340982411,1730209833994,-588.14498397,0.00021917,3]
[340982412,1730209834003,-500.0,0.00021917,3]
[340982413,1730209834013,-500.0,0.00021917,3]
[340982414,1730209834022,-500.0,0.00021917,3]
[340982415,1730209834032,-500.0,0.00021917,3]
[340982416,1730209834044,-500.0,0.00021917,3]
[340982417,1730209834054,-500.0,0.00021917,3]
[340982418,1730209834064,-609.81,0.00021917,3]
[340982419,1730209834073,-500.0,0.00021917,3]
[340982420,1730209834083,-500.0,0.00021917,3]
[340982421,1730209834093,-500.0,0.00021917,3]
[340982422,1730209834102,-500.0,0.00021917,3]
[340982423,1730209834112,-500.0,0.00021917,3]
[340982424,1730209834122,-181.429946,0.00021917,2]
[340982425,1730209834131,-181.429946,0.00021917,2]
[340982426,1730209834140,-181.429946,0.00021917,2]
[340982427,1730209834150,-523.45,0.00021917,3]
[340982428,1730209834159,-181.429946,0.00021917,2]
[340982429,1730209834170,-181.429946,0.00021917,2]
[340982430,1730209834180,-181.429946,0.00021917,2]
[340982431,1730209834189,-181.429946,0.00021917,2]
[340982432,1730209834199,-181.429946,0.00021917,2]
[340982433,1730209834209,-181.429946,0.00021917,2]
[340982434,1730209834219,-181.429946,0.00021917,2]
[340982435,1730209834229,-181.429946,0.00021917,2]
[340982436,1730209834238,-181.429946,0.00021917,2]
[340982437,1730209834248,-181.429946,0.00021917,2]
[340982438,1730209834258,-181.429946,0.00021917,2]
[340982439,1730209834268,-181.429946,0.00021917,2]
[340982440,1730209834281,-181.429946,0.00021917,2]
[340982441,1730209834294,-181.429946,0.00021917,2]
[340982442,1730209834307,-181.429946,0.00021917,2]
[340982443,1730209834317,-181.429946,0.00021917,2]
[340982444,1730209834329,-181.429938,0.00021917,2]
[340982445,1730209834338,-500.0,0.00021917,3]
[340982446,1730209834348,-500.0,0.00021917,3]
[340982447,1730209834358,-508.7,0.00021917,3]
[340982448,1730209834368,-500.0,0.00021917,3]
[340982449,1730209834378,-500.0,0.00021917,3]
[340982450,1730209834388,-229.95562507,0.00021917,3]
[340982451,1730209834398,-500.0,0.00021917,3]
[340982452,1730209834408,-500.0,0.00021917,3]
[340982453,1730209834417,-500.0,0.00021917,3]
[340982454,1730209834427,-500.0,0.00021917,3]
[340982455,1730209834437,-500.0,0.00021917,3]
[340982456,1730209834446,-500.0,0.00021917,3]
[340982457,1730209834456,-500.0,0.00021917,3]
[340982458,1730209834466,-500.0,0.00021917,2]
[340982459,1730209834475,-500.0,0.00021917,3]
[340982460,1730209834485,-500.0,0.00021917,3]
[340982461,1730209834494,-662.34,0.00021917,3]
[340982462,1730209834504,-218.84798009,0.00021917,3]
[340982463,1730209834514,-500.0,0.00021917,3]
[340982464,1730209834523,-1000.0,0.00021917,2]
[340982465,1730209834533,-1000.0,0.00021917,2]
[340982466,1730209834546,-1000.0,0.00021917,2]
[340982467,1730209834556,-1000.0,0.00021917,2]
[340982468,1730209834566,-1000.0,0.00021917,2]
[340982469,1730209834577,-1000.0,0.00021917,2]
[340982470,1730209834587,-1000.0,0.00021917,2]
[340982471,1730209834596,-500.0,0.00021917,3]
[340982472,1730209834606,-1000.0,0.00021917,2]
[340982473,1730209834615,-1000.0,0.00021917,2]
[340982474,1730209834625,-1000.0,0.00021917,2]
[340982475,1730209834634,-1000.0,0.00021917,2]
[340982476,1730209834644,-1000.0,0.00021917,2]
[340982477,1730209834653,-500.0,0.00021917,3]
[340982478,1730209834663,-1000.0,0.00021917,2]
[340982479,1730209834672,-1000.0,0.00021917,2]
[340982480,1730209834681,-1000.0,0.00021917,2]
[340982481,1730209834696,-1000.0,0.00021917,2]
[340982482,1730209834705,-1000.0,0.00021917,2]
[340982483,1730209834714,-500.0,0.00021917,3]
[340982484,1730209834724,-1000.0,0.00021917,2]
[340982485,1730209834737,-1000.0,0.00021917,2]
[340982486,1730209834746,-1000.0,0.00021917,2]
[340982487,1730209834756,-1000.0,0.00021917,2]
[340982488,1730209834766,-1000.0,0.00021917,2]
[340982489,1730209834775,-1000.0,0.00021917,2]
[340982490,1730209834785,-1000.0,0.00021917,2]
[340982491,1730209834796,-500.0,0.00021917,3]
[340982492,1730209834806,-1000.0,0.00021917,2]
[340982493,1730209834816,-1000.0,0.00021917,2]
[340982494,1730209834828,-1000.0,0.00021917,2]
[340982495,1730209834839,-332.59614851,0.00021917,2]
[340982496,1730209834848,-561.12,0.00021917,3]
[340982497,1730209834859,-500.0,0.00021917,3]
[340982498,1730209834868,-500.0,0.00021917,3]
[340982499,1730209834877,-500.0,0.00021917,3]
[340982500,1730209834886,-500.0,0.00021917,3]
[340982501,1730209834896,-500.0,0.00021917,3]
[340982502,1730209834905,-500.0,0.00021917,3]
[340982503,1730209834914,-500.0,0.00021917,3]
[340982504,1730209834923,-598.74,0.00021917,3]
[340982505,1730209834933,-588.72,0.00021917,3]
[340982506,1730209834944,-5000.0,0.00021917,2]
[340982507,1730209834954,-225.22045673,0.00021917,2]
[340982508,1730209834964,-500.0,0.00021917,3]
[340982509,1730209834974,-500.0,0.00021917,3]
[340982510,1730209834985,-500.0,0.00021917,3]
[340982511,1730209834995,-500.0,0.00021917,3]
[340982512,1730209835006,-500.0,0.00021917,3]
[340982513,1730209835016,-500.0,0.00021917,3]
[340982514,1730209835027,-500.0,0.00021917,3]
[340982515,1730209835038,-500.0,0.00021917,3]
[340982516,1730209835048,-500.0,0.00021917,3]
[340982517,1730209835057,-713.75,0.00021917,3]
[340982518,1730209835067,-500.0,0.00021917,3]
[340982519,1730209835076,-500.0,0.00021917,3]
[340982520,1730209835086,-500.0,0.00021917,3]
[340982521,1730209835098,-500.0,0.00021917,3]
[340982522,1730209835111,-500.0,0.00021917,3]
[340982523,1730209835122,-500.0,0.00021917,3]
[340982524,1730209835132,-151.0,0.00021917,2]
[340982525,1730209835141,-500.0,0.00021917,3]
[340982526,1730209835151,-500.0,0.00021917,3]
[340982527,1730209835161,-500.0,0.00021917,3]
[340982528,1730209835170,-500.0,0.00021917,3]
[340982529,1730209835267,-500.0,0.00021917,3]
[340982530,1730209835277,-500.0,0.00021917,3]
[340982531,1730209835288,-500.77760053,0.00021917,3]
[340982532,1730209835297,-16226.81,0.00021917,3]
[340982533,1730209835308,-500.0,0.00021917,3]
[340982534,1730209835317,-500.0,0.00021917,3]
[340982535,1730209835326,-500.0,0.00021917,3]
[340982536,1730209835336,-444.31866208,0.00021917,3]
[340982537,1730209835347,-1630.05,0.00021917,3]
[340982538,1730209835358,-500.0,0.00021917,3]
[340982539,1730209835368,-500.0,0.00021917,3]
[340982540,1730209835378,-727.81,0.00021917,3]
[340982541,1730209835387,-500.0,0.00021917,3]
[340982542,1730209835396,-200.0,0.00021917,3]
[340982543,1730209835406,-500.0,0.00021917,3]
[340982544,1730209835416,-849.96,0.00021917,3]
[340982545,1730209835426,-503.83125158,0.00021917,3]
[340982546,1730209835435,-1026.44,0.00021917,3]
[340982547,1730209835446,-500.0,0.00021917,3]
[340982548,1730209835455,-1771.25,0.00021917,3]
[340982549,1730209835465,-500.0,0.00021917,3]
[340982550,1730209835476,-151.0,0.00021917,2]
[340982551,1730209835488,-151.0,0.00021917,2]
[340982552,1730209835499,-244.262678,0.00021917,2]
[340982553,1730209835510,-151.0,0.00021917,2]
[340982554,1730209835519,-151.0,0.00021917,2]
[340982555,1730209835528,-151.0,0.00021917,2]
[340982556,1730209835539,-151.0,0.00021917,2]
[340982557,1730209835549,-151.0,0.00021917,2]
[340982558,1730209835559,-151.0,0.00021917,2]
[340982559,1730209835568,-500.0,0.00021917,3]
[340982560,1730209835577,-265.68630995,0.00021917,2]
[340982561,1730209835588,-500.0,0.00021917,3]
[340982562,1730209835598,-500.0,0.00021917,3]
[340982563,1730209835609,-500.0,0.00021917,3]
[340982564,1730209835620,-500.0,0.00021917,2]
[340982565,1730209835630,-500.0,0.00021917,3]
[340982566,1730209835640,-151.0,0.00021917,2]
[340982567,1730209835651,-151.0,0.00021917,2]
[340982568,1730209835661,-151.0,0.00021917,2]
[340982569,1730209835671,-151.0,0.00021917,2]
[340982570,1730209835682,-500.0,0.00021917,3]
[340982571,1730209835692,-151.0,0.00021917,2]
[340982572,1730209835702,-151.0,0.00021917,2]
[340982573,1730209835713,-151.0,0.00021917,2]
[340982574,1730209835723,-500.0,0.00021917,3]
[340982575,1730209835736,-500.0,0.00021917,3]
[340982576,1730209835747,-500.0,0.00021917,3]
[340982577,1730209835756,-153.523911,0.00021917,2]
[340982578,1730209835766,-500.0,0.00021917,3]
[340982579,1730209835776,-500.0,0.00021917,3]
[340982580,1730209835785,-172.1506074,0.00021917,3]
[340982581,1730209835796,-500.0,0.00021917,3]
[340982582,1730209835806,-500.0,0.00021917,3]
[340982583,1730209835816,-235.54011299,0.00021917,2]
[340982584,1730209835826,-500.0,0.00021917,3]
[340982585,1730209835835,-501.28127056,0.00021917,3]
[340982586,1730209835845,-500.0,0.00021917,3]
[340982587,1730209835855,-799.29,0.00021917,3]
[340982588,1730209835865,-500.0,0.00021917,3]
[340982589,1730209835874,-501.89000106,0.00021917,3]
[340982590,1730209835883,-502.58476278,0.00021917,3]
[340982591,1730209835892,-151.0,0.00021917,2]
[340982592,1730209835901,-151.0,0.00021917,2]
[340982593,1730209835910,-300.204979,0.00021917,2]
[340982594,1730209835922,-500.0,0.00021917,3]
[340982595,1730209835932,-184.58788346,0.00021917,3]
[340982596,1730209835942,-500.0,0.00021917,3]
[340982597,1730209835952,-500.0,0.00021917,3]
[340982598,1730209835962,-501.61108564,0.00021917,3]
[340982599,1730209835971,-500.0,0.00021917,3]
[340982600,1730209835980,-538.14,0.00021917,3]
[340982601,1730209835989,-151.0,0.00021917,2]
[340982602,1730209835999,-592.67,0.00021917,3]
[340982603,1730209836008,-151.0,0.00021917,2]
[340982604,1730209836018,-610.44173993,0.00021917,3]
[340982605,1730209836027,-500.0,0.00021917,3]
[340982606,1730209836036,-504.62599635,0.00021917,3]
[340982607,1730209836046,-500.0,0.00021917,3]
[340982608,1730209836055,-1512.81,0.00021917,3]
[340982609,1730209836064,-575.96,0.00021917,3]
[340982610,1730209836073,-732.96,0.00021917,3]
[340982611,1730209836082,-500.0,0.00021917,3]
[340982612,1730209836091,-232.566056,0.00021917,2]
[340982613,1730209836100,-500.0,0.00021917,3]
[340982614,1730209836109,-500.0,0.00021917,3]
[340982615,1730209836118,-500.0,0.00021917,3]
[340982616,1730209836127,-500.0,0.00021917,3]
[340982617,1730209836136,-767.5,0.00021917,3]
[340982618,1730209836145,-500.0,0.00021917,3]
[340982619,1730209836154,-621.13,0.00021917,3]
[340982620,1730209836164,-1566.39,0.00021917,3]
[340982621,1730209836173,-500.0,0.00021917,3]
[340982622,1730209836182,-500.0,0.00021917,3]
[340982623,1730209836191,-607.58590795,0.00021917,3]
[340982624,1730209836201,-500.0,0.00021917,3]
[340982625,1730209836210,-151.0,0.00021917,2]
[340982626,1730209836219,-500.0,0.00021917,3]
[340982627,1730209836229,-151.0,0.00021917,2]
[340982628,1730209836238,-151.0,0.00021917,2]
[340982629,1730209836249,-151.0,0.00021917,2]
[340982630,1730209836258,-1122.25,0.00021917,3]
[340982631,1730209836270,-500.0,0.00021917,3]
[340982632,1730209836280,-503.93,0.00021917,3]
[340982633,1730209836289,-146.51996577,0.00021917,3]
[340982634,1730209836308,-359.93003423,0.00021917,3]
[340982635,1730209836317,-500.0,0.00021917,3]
[340982636,1730209836326,-500.0,0.00021917,3]
[340982637,1730209836336,-500.0,0.00021917,3]
[340982638,1730209836346,-332.44401874,0.00021917,2]
[340982639,1730209836355,-500.0,0.00021917,3]
[340982640,1730209836365,-151.0,0.00021917,2]
[340982641,1730209836374,-500.0,0.00021917,3]
[340982642,1730209836383,-500.0,0.00021917,3]
[340982643,1730209836393,-151.0,0.00021917,2]
[340982644,1730209836402,-151.0,0.00021917,2]
[340982645,1730209836412,-500.0,0.00021917,3]
[340982646,1730209836421,-151.0,0.00021917,2]
[340982647,1730209836431,-151.0,0.00021917,2]
[340982648,1730209836440,-500.0,0.00021917,3]
[340982649,1730209836449,-151.0,0.00021917,2]
[340982650,1730209836458,-151.0,0.00021917,2]
[340982651,1730209836468,-151.0,0.00021917,2]